bitfinex/quotes_SOLUSD_20241021
["timestamp","ask_amount","ask_price","bid_price","bid_amount"]
[1729470593139,0.1,169.82,169.8,1.71359615]
[1729470593329,0.1,169.82,169.81,1.71359615]
[1729470593631,0.1,169.82,169.76,1.71180266]
[1729470593834,0.1,169.82,169.77,1.71180266]
[1729470594131,0.1,169.83,169.78,1.71180266]
[1729470594334,13.61248062,169.87,169.79,1.71180266]
[1729470594629,13.61248062,169.87,169.8,1.71180266]
[1729470594861,13.61248062,169.87,169.78,1.71180266]
[1729470595015,13.61248062,169.87,169.79,1.71180266]
[1729470595213,13.61248062,169.87,169.8,1.71180266]
[1729470595432,13.61248062,169.87,169.81,1.71180266]
[1729470595619,13.61248062,169.87,169.82,1.71180266]
[1729470595818,13.61248062,169.87,169.83,1.71180266]
[1729470596019,13.61248062,169.87,169.77,2.74204349]
[1729470596230,13.61248062,169.87,169.78,1.71112214]
[1729470596545,13.61248062,169.87,169.79,1.71112214]
[1729470596720,13.61248062,169.87,169.8,1.71112214]
[1729470596919,13.61248062,169.87,169.81,1.71112214]
[1729470597127,23.876884,169.86,169.82,1.71112214]
[1729470597439,0.1,169.83,169.73,1.02309375]
[1729470597649,0.1,169.83,169.74,1.71139886]
[1729470597821,0.1,169.83,169.75,1.71139886]
[1729470598017,0.1,169.83,169.76,1.71139886]
[1729470598233,0.1,169.84,169.77,1.71139886]
[1729470598441,0.1,169.83,169.78,1.71139886]
[1729470598739,0.1,169.83,169.79,1.71139886]
[1729470598915,0.1,169.84,169.73,1.02309375]
[1729470599113,0.1,169.84,169.74,1.71229177]
[1729470599339,0.1,169.84,169.75,1.71229177]
[1729470599540,0.1,169.84,169.76,1.71229177]
[1729470599736,0.1,169.84,169.73,1.02309375]
[1729470599930,0.1,169.81,169.74,21.7120182]
[1729470600127,0.1,169.81,169.75,4.4516495]
[1729470600342,0.1,169.81,169.73,1.02309375]
[1729470600343,23.876884,169.82,169.73,1.02309375]
[1729470600540,0.1,169.81,169.76,1.71230703]
[1729470600721,0.1,169.8,169.73,1.02309375]
[1729470600920,0.1,169.8,169.74,1.71238049]
[1729470601239,0.1,169.8,169.75,1.71238049]
[1729470601456,47.170084,169.77,169.76,1.71238049]
[1729470601615,23.776884,169.76,169.65,2.740211]
[1729470601815,23.2932,169.77,169.69,1.0236719]
[1729470602218,5.8877,169.85,169.7,0.1]
[1729470602219,22.2801,169.83,169.7,0.1]
[1729470602419,22.2801,169.83,169.72,0.1]
[1729470602722,23.13033387,169.83,169.72,0.1]
[1729470602922,23.13033387,169.83,169.71,22.74021107]
[1729470602923,0.1,169.82,169.71,22.74021107]
[1729470603117,0.1,169.82,169.71,2.74021107]
[1729470603347,0.1,169.78,169.69,1.02340449]
[1729470603549,0.1,169.81,169.69,1.02340449]
[1729470603842,23.776884,169.82,169.69,1.12340449]
[1729470604049,23.876884,169.82,169.69,1.02340449]
[1729470604631,0.1,169.8,169.69,1.02340449]
[1729470604827,23.776884,169.82,169.69,1.02340449]
[1729470604828,13.92818842,169.79,169.69,1.02340449]
[1729470605150,23.776884,169.75,169.69,1.02340449]
[1729470606044,0.85043239,169.75,169.69,1.02340449]
[1729470609328,23.776884,169.74,169.69,1.02340449]
[1729470609528,13.24733164,169.73,169.61,5.82281421]
[1729470609729,23.876884,169.74,169.62,2.74339441]
[1729470609730,23.776884,169.74,169.62,2.74339441]
[1729470609964,23.776884,169.74,169.66,1.02391963]
[1729470610137,23.876884,169.74,169.63,5.48360541]
[1729470610338,23.776884,169.74,169.66,1.02391748]
[1729470610642,23.876884,169.74,169.64,20.0]
[1729470610947,23.876884,169.74,169.66,1.02310419]
[1729470611842,15.6825,169.76,169.66,1.02310419]
[1729470612041,15.6825,169.76,169.67,20.0]
[1729470612235,15.6825,169.76,169.67,22.74339441]
[1729470612762,15.6825,169.76,169.67,2.74339441]
[1729470613258,15.6825,169.76,169.66,21.02310419]
[1729470613436,15.6825,169.76,169.67,2.74097601]
[1729470613631,15.6825,169.76,169.67,24.45357735]
[1729470613836,15.6825,169.76,169.68,24.45357735]
[1729470614138,0.83872657,169.78,169.69,24.45357735]
[1729470614346,0.83872657,169.78,169.7,24.45357735]
[1729470614545,0.83872657,169.78,169.71,24.45357735]
[1729470614751,0.83872657,169.78,169.72,24.45357735]
[1729470614931,0.83872657,169.78,169.73,24.45357735]
[1729470615133,0.83872657,169.78,169.74,4.45357735]
[1729470615367,0.83872657,169.78,169.75,21.71227431]
[1729470615534,0.83872657,169.78,169.76,1.71227431]
[1729470616147,0.83872657,169.78,169.67,2.74172704]
[1729470616357,0.83872657,169.78,169.68,4.45483893]
[1729470616553,0.83872657,169.78,169.69,1.71311189]
[1729470616755,0.83872657,169.78,169.7,1.71311189]
[1729470616937,0.83872657,169.78,169.71,1.71344682]
[1729470617254,0.83872657,169.78,169.72,1.71344682]
[1729470617455,0.83872657,169.78,169.73,1.71344682]
[1729470617661,0.83872657,169.78,169.74,1.71344682]
[1729470617959,0.83872657,169.78,169.75,1.71344682]
[1729470618134,0.83872657,169.78,169.68,2.74191812]
[1729470618135,0.83872657,169.78,169.76,1.71344682]
[1729470618335,23.776884,169.77,169.68,2.74191812]
[1729470618561,23.776884,169.77,169.66,21.02310419]
[1729470618562,15.9948,169.73,169.69,1.71490811]
[1729470618852,15.9948,169.73,169.7,1.71490811]
[1729470619157,15.9948,169.73,169.71,1.71490811]
[1729470619358,15.9948,169.73,169.72,1.71490811]
[1729470619550,39.771684,169.73,169.67,1.71490811]
[1729470619867,40.61073199,169.73,169.68,1.71490811]
[1729470620043,40.61073199,169.73,169.69,1.71490811]
[1729470620245,40.61073199,169.73,169.68,1.71490811]
[1729470620459,40.61073199,169.73,169.67,20.0]
[1729470620660,40.61073199,169.73,169.68,1.71684364]
[1729470620958,40.61073199,169.73,169.69,1.71684364]
[1729470621261,40.61073199,169.73,169.67,20.0]
[1729470621262,40.61073199,169.73,169.7,1.71684364]
[1729470621458,23.776884,169.72,169.71,1.71684364]
[1729470622049,23.776884,169.72,169.69,1.71684364]
[1729470622247,23.776884,169.72,169.7,1.71684364]
[1729470622447,23.776884,169.72,169.71,1.71684364]
[1729470622659,23.776884,169.72,169.69,1.71684364]
[1729470622837,23.776884,169.72,169.7,1.71684364]
[1729470623163,23.776884,169.72,169.71,1.71684364]
[1729470623365,23.776884,169.72,169.69,1.71684364]
[1729470623659,23.776884,169.72,169.7,1.71684364]
[1729470623855,23.776884,169.72,169.71,1.71684364]
[1729470624153,23.776884,169.72,169.69,1.71927706]
[1729470624457,23.776884,169.72,169.7,1.71927706]
[1729470624631,23.776884,169.72,169.71,1.71927706]
[1729470625035,23.776884,169.72,169.7,1.71927706]
[1729470625235,23.776884,169.72,169.71,1.71927706]
[1729470625546,16.83384799,169.73,169.69,24.47052504]
[1729470625864,0.83904799,169.73,169.7,24.47052504]
[1729470626037,0.83904799,169.73,169.71,24.47052504]
[1729470626237,0.83904799,169.73,169.72,24.47052504]
[1729470626450,0.83904799,169.73,169.72,4.47052504]
[1729470626639,0.83904799,169.73,169.72,1.71927706]
[1729470626947,24.61593199,169.73,169.68,24.47052504]
[1729470627159,24.61593199,169.73,169.69,24.47052504]
[1729470627375,24.61593199,169.73,169.7,1.71927706]
[1729470627538,23.776884,169.72,169.7,1.71927706]
[1729470627737,23.776884,169.72,169.71,1.71927706]
[1729470627943,23.776884,169.72,169.69,1.71927706]
[1729470628144,23.776884,169.72,169.7,1.71927706]
[1729470628436,23.776884,169.72,169.71,1.71927706]
[1729470629046,23.776884,169.72,169.69,1.71927706]
[1729470629245,23.776884,169.72,169.7,1.71927706]
[1729470629442,23.776884,169.72,169.71,1.71927706]
[1729470629943,23.776884,169.72,169.69,1.71927706]
[1729470630139,23.776884,169.72,169.7,1.71927706]
[1729470630449,0.1,169.7,169.68,2.75124798]
[1729470630646,0.1,169.7,169.69,1.72151146]
[1729470630863,0.1,169.7,169.66,1.02310419]
[1729470630864,0.1,169.7,169.67,1.72151146]
[1729470631156,0.1,169.7,169.68,1.72151335]
[1729470631362,0.1,169.7,169.66,1.02310419]
[1729470631545,0.1,169.71,169.67,1.72159819]
[1729470631546,0.1,169.69,169.67,1.72159819]
[1729470632353,21.6189,169.72,169.67,1.72159819]
[1729470632661,21.6189,169.72,169.68,1.72159819]
[1729470632841,21.6189,169.72,169.69,1.72159819]
[1729470633045,21.6189,169.72,169.7,1.72159819]
[1729470633349,21.6189,169.72,169.71,1.72159819]
[1729470633663,21.6189,169.72,169.67,20.0]
[1729470633664,21.6189,169.72,169.69,1.72159819]
[1729470633866,21.6189,169.72,169.7,1.72159819]
[1729470634048,21.6189,169.72,169.71,1.72159819]
[1729470634763,21.6189,169.72,169.71,1.71904828]
[1729470634955,21.6189,169.72,169.67,1.71904828]
[1729470635145,21.6189,169.72,169.66,1.02408018]
[1729470635146,21.6189,169.72,169.68,1.71904828]
[1729470635347,21.6189,169.72,169.69,1.71904828]
[1729470635556,21.6189,169.72,169.7,1.71904828]
[1729470635869,45.395784,169.72,169.71,1.71904828]
[1729470636355,45.395784,169.72,169.68,4.46993029]
[1729470636556,45.395784,169.72,169.69,1.71904828]
[1729470636758,45.395784,169.72,169.7,1.71904828]
[1729470636954,16.1669,169.77,169.71,1.71904828]
[1729470637267,0.83872657,169.78,169.72,1.71904828]
[1729470637443,0.83872657,169.78,169.73,1.71904828]
[1729470637640,0.83872657,169.78,169.74,1.71904828]
[1729470637871,0.83872657,169.78,169.75,1.71904828]
[1729470638177,16.2669,169.81,169.76,1.71780141]
[1729470638343,6.2731,169.84,169.77,1.71780141]
[1729470638545,16.1669,169.85,169.78,1.71780141]
[1729470638743,16.1669,169.85,169.79,1.71780141]
[1729470638967,16.1669,169.85,169.8,1.71780141]
[1729470639150,16.98691114,169.85,169.81,1.71780141]
[1729470639357,16.98691114,169.85,169.82,1.71780141]
[1729470639546,16.98691114,169.85,169.83,1.71780141]
[1729470639746,23.776884,169.84,169.75,2.74888649]
[1729470640071,17.08691114,169.85,169.76,1.71686698]
[1729470640244,17.08691114,169.85,169.77,1.71686698]
[1729470640447,17.08691114,169.85,169.78,1.71686698]
[1729470640648,17.08691114,169.85,169.79,1.71686698]
[1729470640866,17.08691114,169.85,169.75,2.74888649]
[1729470640867,17.08691114,169.85,169.8,1.71686698]
[1729470641070,17.08691114,169.85,169.81,1.71686698]
[1729470641258,23.776884,169.84,169.75,2.74888649]
[1729470641455,23.776884,169.84,169.76,1.71722528]
[1729470641767,23.776884,169.84,169.77,1.71722528]
[1729470642046,23.876884,169.84,169.78,1.71722528]
[1729470642247,0.1,169.83,169.76,1.71722528]
[1729470642575,0.1,169.83,169.77,1.71722528]
[1729470642779,0.1,169.83,169.78,1.71722528]
[1729470643093,0.1,169.83,169.79,1.71722528]
[1729470643248,0.1,169.82,169.8,1.71722528]
[1729470643447,0.1,169.82,169.72,2.74888649]
[1729470643671,0.1,169.82,169.73,4.46744191]
[1729470643858,0.1,169.82,169.7,6.4517]
[1729470643859,0.1,169.82,169.74,1.71855542]
[1729470644062,0.1,169.82,169.75,1.71855542]
[1729470644255,23.776884,169.84,169.76,1.71855542]
[1729470644554,0.1,169.83,169.77,1.71855542]
[1729470644765,0.1,169.83,169.78,1.71855542]
[1729470644961,0.1,169.83,169.79,1.71855542]
[1729470645472,0.1,169.83,169.8,1.71855542]
[1729470645771,0.1,169.83,169.74,2.74888649]
[1729470645954,0.1,169.83,169.75,1.71892172]
[1729470646159,0.1,169.83,169.76,1.71892172]
[1729470646374,0.1,169.83,169.77,1.71892172]
[1729470646558,0.1,169.83,169.78,1.71892172]
[1729470646755,0.1,169.83,169.79,1.71892172]
[1729470646956,0.1,169.83,169.8,1.71892172]
[1729470647167,0.1,169.83,169.81,1.71892172]
[1729470647472,0.1,169.83,169.73,2.74888649]
[1729470647774,0.1,169.83,169.74,4.46862472]
[1729470647963,0.1,169.83,169.75,4.46862472]
[1729470648273,0.1,169.83,169.76,1.71973823]
[1729470648574,0.1,169.83,169.77,1.71973823]
[1729470648781,0.1,169.83,169.78,1.71973823]
[1729470648954,23.776884,169.81,169.71,20.0]
[1729470649271,0.1,169.83,169.72,4.47491961]
[1729470649458,0.1,169.83,169.73,4.47491961]
[1729470649651,0.1,169.83,169.74,4.47491961]
[1729470649853,0.1,169.83,169.75,4.47491961]
[1729470650074,0.1,169.83,169.76,1.72096728]
[1729470650269,0.1,169.83,169.77,1.72096728]
[1729470650576,0.1,169.83,169.78,1.72096728]
[1729470650874,0.1,169.83,169.79,1.72096728]
[1729470651062,0.1,169.81,169.8,1.72096728]
[1729470651375,24.69710984,169.81,169.8,1.72096728]
[1729470651548,24.69710984,169.81,169.73,4.47491961]
[1729470651850,24.69710984,169.81,169.74,4.47491961]
[1729470652059,24.69710984,169.81,169.75,1.72096728]
[1729470652283,24.69710984,169.81,169.76,1.72096728]
[1729470652571,24.69710984,169.81,169.77,1.72096728]
[1729470652773,24.69710984,169.81,169.78,1.72096728]
[1729470652957,24.69710984,169.81,169.79,1.72096728]
[1729470653164,24.69710984,169.81,169.8,1.72096728]
[1729470653573,24.69710984,169.81,169.75,4.47491961]
[1729470653779,24.69710984,169.81,169.76,1.72096728]
[1729470653986,0.1,169.8,169.77,1.72096728]
[1729470654280,0.1,169.8,169.78,1.72096728]
[1729470654584,0.1,169.8,169.79,1.72096728]
[1729470654749,0.82022584,169.81,169.79,1.72096728]
[1729470654954,0.82022584,169.81,169.8,1.72096728]
[1729470656066,23.776884,169.8,169.75,2.75926679]
[1729470656373,23.776884,169.8,169.71,20.0]
[1729470656374,23.776884,169.8,169.76,4.48371156]
[1729470656577,23.776884,169.8,169.77,4.48371156]
[1729470656788,23.776884,169.8,169.78,4.48371156]
[1729470657078,23.776884,169.8,169.79,1.72444477]
[1729470657375,0.82022584,169.81,169.79,1.72444477]
[1729470657555,0.82022584,169.81,169.8,4.48371156]
[1729470657756,0.82001114,169.85,169.8,4.48371156]
[1729470657993,0.82001114,169.85,169.77,20.0]
[1729470657994,0.82001114,169.85,169.81,4.48371156]
[1729470658274,15.4225,169.89,169.82,4.48371156]
[1729470658481,15.4225,169.89,169.83,4.48371156]
[1729470658686,15.4225,169.89,169.84,4.48371156]
[1729470658862,15.4225,169.89,169.85,1.72444477]
[1729470659062,16.24237441,169.89,169.86,1.72444477]
[1729470659365,16.24237441,169.89,169.87,1.72444477]
[1729470659577,16.24237441,169.89,169.88,1.72384358]
[1729470659777,16.24237441,169.89,169.84,1.72384358]
[1729470660089,16.24237441,169.89,169.79,20.0]
[1729470660090,16.24237441,169.89,169.85,1.723967]
[1729470660273,16.24237441,169.89,169.86,1.723967]
[1729470660469,16.24237441,169.89,169.87,1.723967]
[1729470660665,23.776884,169.88,169.8,2.75855501]
[1729470660865,23.776884,169.88,169.81,2.75850321]
[1729470661065,23.776884,169.88,169.82,4.48231445]
[1729470661283,23.776884,169.88,169.83,4.48231445]
[1729470661583,23.776884,169.88,169.84,1.72381124]
[1729470661784,23.776884,169.88,169.85,1.72381124]
[1729470661984,23.776884,169.88,169.86,1.72381124]
[1729470662167,23.776884,169.88,169.87,1.72381124]
[1729470662564,6.8304043,169.92,169.82,4.48231445]
[1729470662863,6.8304043,169.92,169.83,4.48231445]
[1729470663061,6.7304043,169.92,169.84,1.72381124]
[1729470663276,6.7304043,169.92,169.86,20.0]
[1729470663277,0.6319043,169.92,169.86,20.0]
[1729470663485,0.6319043,169.92,169.87,1.72381124]
[1729470663687,0.6319043,169.92,169.88,1.72381124]
[1729470664179,0.6319043,169.92,169.89,1.72381124]
[1729470664481,0.6319043,169.92,169.9,1.71997242]
[1729470664673,0.6319043,169.92,169.83,22.75850321]
[1729470664994,0.6319043,169.92,169.84,4.4785414]
[1729470665283,0.6319043,169.92,169.85,1.72003819]
[1729470665589,0.6319043,169.92,169.86,1.72003819]
[1729470665764,0.6319043,169.92,169.87,1.72003819]
[1729470666087,0.6319043,169.92,169.88,1.72003819]
[1729470666270,0.6319043,169.92,169.89,1.72003819]
[1729470666467,0.6319043,169.92,169.9,1.72003819]
[1729470666662,24.4087883,169.92,169.91,1.72003819]
[1729470666863,24.4087883,169.92,169.85,1.72003819]
[1729470667063,25.23337505,169.92,169.86,1.72003819]
[1729470667264,25.23337505,169.92,169.84,2.75850321]
[1729470667265,25.23337505,169.92,169.87,1.72003819]
[1729470667480,25.23337505,169.92,169.88,1.72003819]
[1729470667781,25.23337505,169.92,169.89,1.72003819]
[1729470667967,23.776884,169.91,169.84,2.75850321]
[1729470668168,23.776884,169.91,169.85,1.71632042]
[1729470668388,23.776884,169.91,169.86,1.71632042]
[1729470668577,0.6319043,169.92,169.83,1.71632042]
[1729470668882,0.6319043,169.92,169.84,1.71632042]
[1729470669183,0.6319043,169.92,169.85,1.71632042]
[1729470669389,0.6319043,169.92,169.86,1.71632042]
[1729470669564,0.6319043,169.92,169.87,1.71632042]
[1729470669765,0.6319043,169.92,169.89,20.0]
[1729470670088,0.6319043,169.92,169.9,1.71632042]
[1729470671088,0.6319043,169.92,169.85,20.0]
[1729470671267,23.776884,169.91,169.86,1.71313778]
[1729470671470,24.60149247,169.91,169.86,1.71313778]
[1729470671865,24.60149247,169.91,169.87,1.71319343]
[1729470672065,24.60149247,169.91,169.86,1.71319343]
[1729470672278,24.60149247,169.91,169.87,1.7129216]
[1729470672481,39.85559247,169.91,169.87,1.7129216]
[1729470672690,39.85559247,169.91,169.79,9.09514267]
[1729470673071,39.85559247,169.91,169.8,1.71342516]
[1729470673470,24.60149247,169.91,169.81,1.71342516]
[1729470673780,24.60149247,169.91,169.82,1.71342516]
[1729470673985,24.60149247,169.91,169.83,1.71342516]
[1729470674186,24.60149247,169.91,169.84,1.71342516]
[1729470674387,24.60149247,169.91,169.85,1.71342516]
[1729470674595,24.60149247,169.91,169.86,1.71342516]
[1729470674769,24.60149247,169.91,169.81,2.74144267]
[1729470674974,24.60149247,169.91,169.82,1.71263782]
[1729470675188,24.60149247,169.91,169.83,1.71263782]
[1729470675372,23.876884,169.89,169.84,1.71263782]
[1729470675688,0.1,169.88,169.78,15.284]
[1729470675895,0.1,169.88,169.76,2.74144267]
[1729470675896,0.1,169.88,169.79,1.71193746]
[1729470676085,23.876884,169.87,169.8,1.71193746]
[1729470676269,23.876884,169.85,169.81,1.71193746]
[1729470676475,23.776884,169.85,169.75,3.76437532]
[1729470676670,5.3173,169.94,169.77,6.4149]
[1729470676884,0.1,169.93,169.78,32.39938516]
[1729470677088,0.1,169.93,169.79,4.45379334]
[1729470677379,5.4173,169.94,169.8,17.06498516]
[1729470677697,5.3173,169.94,169.81,21.71235067]
[1729470677900,5.4173,169.94,169.82,1.71235067]
[1729470678079,5.3173,169.94,169.82,1.71235067]
[1729470678894,23.776884,169.9,169.82,1.71235067]
[1729470680102,23.776884,169.9,169.8,4.45379334]
[1729470680298,23.776884,169.9,169.81,1.71235067]
[1729470680477,23.776884,169.9,169.82,1.71235067]
[1729470680794,23.776884,169.9,169.83,1.71235067]
[1729470680986,23.776884,169.9,169.84,1.71235067]
[1729470681192,23.776884,169.9,169.85,1.71235067]
[1729470681394,23.776884,169.9,169.86,1.71235067]
[1729470681581,23.776884,169.9,169.8,2.74144267]
[1729470681899,23.776884,169.9,169.81,1.71079513]
[1729470682083,23.776884,169.9,169.82,1.71079513]
[1729470682287,23.776884,169.9,169.79,20.0]
[1729470682489,23.776884,169.9,169.83,1.71077559]
[1729470682691,23.776884,169.9,169.8,1.71077559]
[1729470682878,23.776884,169.9,169.81,21.71091545]
[1729470683081,15.5303,169.89,169.82,4.44878325]
[1729470683399,23.776884,169.88,169.83,1.71091545]
[1729470683584,24.60175476,169.88,169.84,1.71091545]
[1729470683904,24.60175476,169.88,169.8,2.7378678]
[1729470684084,24.60175476,169.88,169.81,1.71164673]
[1729470684399,0.82487076,169.88,169.82,1.71164673]
[1729470684700,0.82487076,169.88,169.83,1.71164673]
[1729470684919,0.82487076,169.88,169.84,1.71164673]
[1729470685100,0.82487076,169.88,169.8,2.7378678]
[1729470685101,0.82487076,169.88,169.85,1.71164673]
[1729470685306,0.82460847,169.91,169.86,1.71164673]
[1729470685601,0.82460847,169.91,169.8,2.7378678]
[1729470685803,0.82460847,169.91,169.81,1.71145562]
[1729470686000,0.82460847,169.91,169.82,1.71145562]
[1729470686214,23.776884,169.9,169.83,1.71145562]
[1729470686506,23.776884,169.9,169.84,1.71145562]
[1729470686810,23.776884,169.9,169.85,1.71145562]
[1729470687001,23.776884,169.9,169.86,1.71145562]
[1729470687304,23.776884,169.9,169.8,2.7378678]
[1729470687487,23.776884,169.9,169.81,1.71172915]
[1729470687687,23.776884,169.9,169.82,1.71172915]
[1729470688004,23.776884,169.9,169.83,1.71172915]
[1729470688312,23.776884,169.9,169.84,1.71172915]
[1729470688480,23.776884,169.9,169.85,1.71172915]
[1729470688685,23.776884,169.9,169.86,1.71172915]
[1729470688879,23.776884,169.9,169.8,2.7378678]
[1729470689083,23.776884,169.9,169.81,1.7122004]
[1729470689310,23.776884,169.9,169.82,1.7122004]
[1729470689533,29.662684,169.9,169.83,1.7122004]
[1729470689800,29.762684,169.9,169.84,1.7122004]
[1729470690015,46.747484,169.87,169.78,2.7378678]
[1729470690180,46.747484,169.87,169.79,1.71362777]
[1729470690380,46.747484,169.87,169.8,1.71362777]
[1729470690586,46.747484,169.87,169.81,1.71362777]
[1729470690809,0.1,169.85,169.82,1.71362777]
[1729470691111,23.776884,169.85,169.75,1.02293265]
[1729470691321,23.776884,169.85,169.76,1.71435431]
[1729470691887,23.776884,169.86,169.76,1.71435431]
[1729470692207,0.1,169.85,169.76,1.71435431]
[1729470692443,23.776884,169.82,169.76,1.71435431]
[1729470692711,24.62300966,169.82,169.76,1.71435431]
[1729470693079,24.62300966,169.82,169.75,1.02293265]
[1729470693080,24.62300966,169.82,169.77,1.71756783]
[1729470693285,24.62300966,169.82,169.78,1.71756783]
[1729470693511,24.62300966,169.82,169.69,6.1728]
[1729470693512,0.1,169.69,169.68,5.77823886]
[1729470693685,0.2,169.69,169.68,5.77823886]
[1729470693891,38.20709537,169.7,169.6,72.2]
[1729470693892,0.1,169.65,169.6,72.2]
[1729470694213,5.9953,169.63,169.6,72.2]
[1729470694584,0.2,169.67,169.6,72.2]
[1729470694887,0.2,169.64,169.6,72.2]
[1729470695089,0.1,169.63,169.6,72.2]
[1729470695692,5.9952,169.63,169.6,72.2]
[1729470695899,0.1,169.63,169.6,72.2]
[1729470696088,29.871884,169.64,169.6,72.2]
[1729470696827,29.771884,169.64,169.6,72.2]
[1729470697522,29.871884,169.64,169.6,72.2]
[1729470697914,0.1,169.64,169.6,72.2]
[1729470699627,23.776884,169.61,169.6,72.2]
[1729470700434,23.976884,169.61,169.6,72.2]
[1729470700728,30.563384,169.61,169.6,72.2]
[1729470702535,6.6865,169.61,169.6,72.2]
[1729470702738,6.7865,169.61,169.6,72.2]
[1729470703619,30.563384,169.61,169.6,72.2]
[1729470704339,36.359184,169.61,169.6,72.2]
[1729470704531,36.459184,169.61,169.6,72.2]
[1729470705435,36.359184,169.61,169.6,72.2]
[1729470705735,12.5823,169.61,169.6,72.2]
[1729470705936,12.4823,169.61,169.6,72.2]
[1729470706141,12.5823,169.61,169.45,0.2]
[1729470706325,12.5823,169.61,169.45,1.90315086]
[1729470706533,12.5823,169.61,169.45,1.80315086]
[1729470706716,29.673284,169.6,169.45,1.70315086]
[1729470706920,23.776884,169.6,169.45,1.90315086]
[1729470709120,23.776884,169.6,169.45,1.80315086]
[1729470709325,23.776884,169.6,169.45,1.90315086]
[1729470710822,23.776884,169.6,169.45,1.80315086]
[1729470711030,23.776884,169.6,169.45,1.90315086]
[1729470711241,29.673184,169.6,169.45,1.70315086]
[1729470711932,23.776884,169.58,169.45,1.70315086]
[1729470712122,23.976884,169.6,169.45,1.70315086]
[1729470712324,23.776884,169.58,169.45,1.70315086]
[1729470712630,29.673784,169.58,169.45,1.70315086]
[1729470712819,29.674984,169.55,169.45,1.70315086]
[1729470713017,0.2,169.56,169.43,6.2385]
[1729470713239,0.1,169.56,169.43,6.2385]
[1729470713429,24.66024545,169.55,169.43,6.2385]
[1729470714243,23.776884,169.53,169.44,20.0]
[1729470714443,0.88336145,169.55,169.44,20.0]
[1729470714444,23.776884,169.54,169.44,20.0]
[1729470716722,23.776884,169.55,169.44,20.0]
[1729470717231,23.776884,169.55,169.41,15.531]
[1729470717232,23.776884,169.49,169.42,20.0]
[1729470717425,23.776884,169.49,169.39,6.1906]
[1729470718028,23.776884,169.49,169.37,16.255]
[1729470718645,23.776884,169.49,169.38,1.6875348]
[1729470719248,23.776884,169.49,169.38,21.6875348]
[1729470719426,23.776884,169.5,169.38,20.0]
[1729470720042,23.776884,169.49,169.38,20.0]
[1729470720247,23.776884,169.49,169.37,16.255]
[1729470720542,0.1,169.45,169.33,0.6319043]
[1729470720738,23.776884,169.42,169.33,0.6319043]
[1729470720943,6.0028,169.41,169.33,0.6319043]
[1729470721155,23.776884,169.38,169.33,0.6319043]
[1729470721446,24.66102382,169.38,169.33,0.6319043]
[1729470725133,30.56492382,169.38,169.33,0.6319043]
[1729470725328,5.9043,169.37,169.33,0.6319043]
[1729470725531,23.776884,169.36,169.33,0.6319043]
[1729470725729,5.9052,169.34,169.33,0.6319043]
[1729470725934,23.776884,169.34,169.33,0.6319043]
[1729470727743,29.682084,169.34,169.33,0.6319043]
[1729470727927,23.776884,169.34,169.33,0.6319043]
[1729470728123,29.782084,169.34,169.33,0.6319043]
[1729470728345,29.882084,169.34,169.33,0.6319043]
[1729470728554,23.776884,169.3,169.16,0.6319043]
[1729470728857,29.683484,169.3,169.16,0.6319043]
[1729470729031,23.776884,169.3,169.17,21.8714]
[1729470729539,29.683484,169.3,169.17,21.8714]
[1729470729734,23.776884,169.3,169.17,21.8714]
[1729470730352,5.907,169.29,169.17,21.8714]
[1729470730651,29.683584,169.3,169.17,6.2464]
[1729470730860,29.683584,169.3,169.18,20.0]
[1729470731028,23.776884,169.3,169.17,6.2464]
[1729470731551,21.4837,169.33,169.17,6.2464]
[1729470731847,21.4837,169.33,169.17,6.3464]
[1729470732150,5.906,169.32,169.17,6.2464]
[1729470732348,6.0059,169.32,169.18,20.0]
[1729470732529,0.1,169.32,169.18,20.0]
[1729470732731,24.6614719,169.3,169.18,20.0]
[1729470733633,30.5684719,169.3,169.18,20.0]
[1729470734037,23.776884,169.28,169.17,6.2464]
[1729470734837,23.776884,169.29,169.17,6.2464]
[1729470735039,0.8845879,169.3,169.17,6.2464]
[1729470735348,0.8845879,169.3,169.18,20.0]
[1729470736235,23.776884,169.29,169.18,20.0]
[1729470736659,29.683984,169.29,169.16,0.6319043]
[1729470736849,29.783984,169.29,169.16,0.6319043]